fUSD/lending_fUSD_20251217
["ID","MTS","AMOUNT","RATE_DAILY","PERIOD"]
[398909165,1765986657645,-1009.56,0.00035,14]
[398909166,1765986657659,-2567.82,0.00035,14]
[398909167,1765986657669,-300.17608413,0.00035,30]
[398909168,1765986657679,-284.0,0.00035,30]
[398909169,1765986657689,-700.0,0.00035,2]
[398909170,1765986657699,-163.0,0.00035,30]
[398909171,1765986657711,-463.94482134,0.00035026,2]
[398909172,1765986657721,-1832.06919562,0.00035037,2]
[398909173,1765986657731,-951.88,0.000351,30]
[398909174,1765986657740,-500.0,0.00035106,14]
[398909175,1765986657750,-284.4,0.000352,30]
[398909176,1765986657760,-395.31347641,0.00035233,2]
[398909177,1765986657769,-150.0,0.00035303,7]
[398909178,1765986657779,-1000.0,0.0003538,14]
[398909179,1765986657789,-1300.0,0.0003538,14]
[398909180,1765986657798,-150.0,0.00035477,7]
[398909181,1765986657807,-419.9143555,0.0003561,2]
[398909182,1765986657817,-257.67,0.00035616,33]
[398909183,1765986657828,-507.9,0.00035616,60]
[398909184,1765986657838,-496.2,0.00035616,45]
[398909185,1765986657847,-466.8,0.00035616,87]
[398909186,1765986657857,-579.9,0.00035616,69]
[398909187,1765986657867,-304.75051856,0.00035616,83]
[398909188,1765986657877,-551.1,0.00035616,91]
[398909189,1765986657886,-421.2,0.00035616,101]
[398909190,1765986657896,-492.3,0.00035616,65]
[398909191,1765986657910,-551.4,0.00035616,85]
[398909192,1765986657919,-592.2,0.00035616,91]
[398909193,1765986657929,-412.2,0.00035616,31]
[398909194,1765986657939,-370.5,0.00035616,31]
[398909195,1765986657949,-518.1,0.00035616,118]
[398909196,1765986657959,-406.2,0.00035616,116]
[398909197,1765986657969,-396.9,0.00035616,117]
[398909198,1765986657979,-551.4,0.00035616,54]
[398909199,1765986657989,-405.0,0.00035616,35]
[398909200,1765986657999,-422.7,0.00035616,31]
[398909201,1765986658009,-424.2,0.00035616,64]
[398909202,1765986658025,-321.3,0.00035616,87]
[398909203,1765986658040,-584.1,0.00035616,120]
[398909204,1765986658050,-315.3,0.00035616,38]
[398909205,1765986658060,-396.0,0.00035616,98]
[398909206,1765986658070,-360.0,0.00035616,56]
[398909207,1765986658080,-449.7,0.00035616,116]
[398909208,1765986658090,-500.7,0.00035616,97]
[398909209,1765986658100,-212.5424296,0.00035616,32]
[398909210,1765986658110,-253.6,0.00035616,10]
[398909211,1765986658120,-1553.97,0.00035616,2]
[398909212,1765986658130,-291.638488,0.00035616,31]
[398909213,1765986658140,-291.638488,0.00035616,31]
[398909214,1765986658150,-291.638488,0.00035616,31]
[398909215,1765986658163,-291.638488,0.00035616,31]
[398909216,1765986658174,-291.638488,0.00035616,31]
[398909217,1765986658183,-291.638488,0.00035616,31]
[398909218,1765986658194,-291.638488,0.00035616,31]
[398909219,1765986658204,-291.638488,0.00035616,31]
[398909220,1765986658214,-1607.0,0.00035867,2]
[398909221,1765986658224,-612.0,0.00035867,2]
[398909222,1765986658234,-3453.0,0.00035867,2]
[398909223,1765986658244,-1325.0,0.00035867,2]
[398909224,1765986658255,-1261.0,0.00035867,2]
[398909225,1765986658265,-564.0,0.00035867,2]
[398909226,1765986658274,-911.0,0.00035867,2]
[398909227,1765986658284,-1197.0,0.00035867,2]
[398909228,1765986658294,-2427.0,0.00035867,2]
[398909229,1765986658304,-4799.0,0.00035867,2]
[398909230,1765986658314,-151.0,0.00035867,31]
[398909231,1765986658324,-151.0,0.00035867,31]
[398909232,1765986658334,-151.0,0.00035867,31]
[398909233,1765986658344,-151.0,0.00035867,31]
[398909234,1765986658354,-151.0,0.00035867,31]
[398909235,1765986658363,-151.0,0.00035867,31]
[398909236,1765986658373,-151.0,0.00035867,31]
[398909237,1765986658383,-151.0,0.00035867,31]
[398909238,1765986658393,-151.0,0.00035867,31]
[398909239,1765986658407,-151.0,0.00035867,31]
[398909240,1765986658417,-431.380626,0.00035867,31]
[398909241,1765986658426,-151.0,0.00035867,31]
[398909242,1765986658436,-151.0,0.00035867,31]
[398909243,1765986658446,-431.380626,0.00035867,31]
[398909244,1765986658456,-151.0,0.00035867,31]
[398909245,1765986658466,-431.380626,0.00035867,31]
[398909246,1765986658476,-166.751765,0.00035867,31]
[398909247,1765986658486,-287.141666,0.00035867,31]
[398909248,1765986658495,-431.380626,0.00035867,31]
[398909249,1765986658505,-151.0,0.00035867,31]
[398909250,1765986658515,-195.955722,0.00035867,31]
[398909251,1765986658524,-151.0,0.00035867,31]
[398909252,1765986658535,-195.955722,0.00035867,31]
[398909253,1765986658544,-151.0,0.00035867,31]
[398909254,1765986658554,-151.0,0.00035867,31]
[398909255,1765986658564,-172.069956,0.00035867,15]
[398909256,1765986658581,-195.955722,0.00035867,31]
[398909257,1765986658592,-151.0,0.00035867,31]
[398909258,1765986658603,-151.0,0.00035867,31]
[398909259,1765986658614,-172.069956,0.00035867,15]
[398909260,1765986658625,-195.955722,0.00035867,31]
[398909261,1765986658638,-151.0,0.00035867,31]
[398909262,1765986658650,-151.0,0.00035867,31]
[398909263,1765986658663,-151.0,0.00035867,31]
[398909264,1765986658673,-172.069956,0.00035867,15]
[398909265,1765986658683,-646.700271,0.00035867,31]
[398909266,1765986658694,-151.0,0.00035867,31]
[398909267,1765986658706,-151.0,0.00035867,31]
[398909268,1765986658717,-172.069956,0.00035867,15]
[398909269,1765986658728,-646.700271,0.00035867,31]
[398909270,1765986658739,-356.905953,0.00035867,31]
[398909271,1765986658750,-151.0,0.00035867,31]
[398909272,1765986658761,-151.0,0.00035867,31]
[398909273,1765986658771,-646.700271,0.00035867,31]
[398909274,1765986658782,-356.905953,0.00035867,31]
[398909275,1765986658793,-151.0,0.00035867,31]
[398909276,1765986658804,-151.0,0.00035867,31]
[398909277,1765986658815,-646.700271,0.00035867,31]
[398909278,1765986658827,-356.905953,0.00035867,31]
[398909279,1765986658838,-151.0,0.00035867,31]
[398909280,1765986658849,-151.0,0.00035867,31]
[398909281,1765986658859,-356.905953,0.00035867,31]
[398909282,1765986658870,-151.0,0.00035867,31]
[398909283,1765986658880,-151.0,0.00035867,31]
[398909284,1765986658891,-151.0,0.00035867,31]
[398909285,1765986658903,-151.0,0.00035867,31]
[398909286,1765986658914,-152.332131,0.00035867,31]
[398909287,1765986658925,-151.0,0.00035867,31]
[398909288,1765986658935,-151.0,0.00035867,31]
[398909289,1765986658946,-151.0,0.00035867,31]
[398909290,1765986658957,-151.0,0.00035867,31]
[398909291,1765986658968,-151.0,0.00035867,31]
[398909292,1765986658979,-151.0,0.00035867,31]
[398909293,1765986658989,-151.0,0.00035867,31]
[398909294,1765986659000,-505.81324,0.00035888,30]
[398909295,1765986659010,-1217.27,0.0003595,2]
[398909296,1765986659021,-150.0,0.00035999,7]
[398909297,1765986659031,-730.28,0.00035999,2]
[398909298,1765986659042,-730.28,0.00035999,2]
[398909299,1765986659053,-249.91947699,0.00036,2]
[398909300,1765986659064,-232828.64655676,0.00036,2]
[398909301,1765986659075,-10773.65270128,0.00036,2]
[398909302,1765986659089,-152.28394048,0.00036,2]
[398909303,1765986659100,-15985.664613,0.00036,120]
[398909304,1765986659112,-200.0,0.00036,120]
[398909305,1765986659122,-2396.58,0.00036,2]
[398909306,1765986659133,-167.0,0.00036,30]
[398909307,1765986659143,-151.0,0.00036,30]
[398909308,1765986659157,-151.0,0.00036,31]
[398909309,1765986659167,-151.0,0.00036,31]
[398909310,1765986659178,-151.0,0.00036,31]
[398909311,1765986659188,-151.0,0.00036,31]
[398909312,1765986659199,-331.50698,0.00036,31]
[398909313,1765986659210,-331.50698,0.00036,31]
[398909314,1765986659220,-151.0,0.00036,31]
[398909315,1765986659231,-331.50698,0.00036,31]
[398909316,1765986659242,-331.50698,0.00036,31]
[398909317,1765986659253,-151.0,0.00036,30]
[398909318,1765986659264,-151.0,0.00036,31]
[398909319,1765986659274,-222.194206,0.00036,31]
[398909320,1765986659285,-151.0,0.00036,31]
[398909321,1765986659297,-151.0,0.00036,30]
[398909322,1765986659310,-151.0,0.00036,31]
[398909323,1765986659322,-151.0,0.00036,31]
[398909324,1765986659334,-205.551868,0.00036,31]
[398909325,1765986659344,-151.0,0.00036,31]
[398909326,1765986659355,-426.618691,0.00036,31]
[398909327,1765986659367,-291.452296,0.00036,31]
[398909328,1765986659377,-291.452296,0.00036,31]
[398909329,1765986659388,-291.452296,0.00036,31]
[398909330,1765986659397,-291.452296,0.00036,31]
[398909331,1765986659413,-151.0,0.00036,31]
[398909332,1765986659423,-301.171779,0.00036,31]
[398909333,1765986659432,-151.0,0.00036,31]
[398909334,1765986659443,-238.609181,0.00036,31]
[398909335,1765986659454,-238.609181,0.00036,31]
[398909336,1765986659466,-155.692056,0.00036,31]
[398909337,1765986659476,-279.104335,0.00036,31]
[398909338,1765986659489,-426.618691,0.00036,31]
[398909339,1765986659499,-238.609181,0.00036,31]
[398909340,1765986659511,-426.618691,0.00036,31]
[398909341,1765986659521,-238.609181,0.00036,31]
[398909342,1765986659533,-426.618691,0.00036,31]
[398909343,1765986659544,-151.0,0.00036,31]
[398909344,1765986659556,-151.0,0.00036,31]
[398909345,1765986659566,-151.0,0.00036,31]
[398909346,1765986659578,-151.0,0.00036,31]
[398909347,1765986659589,-151.0,0.00036,31]
[398909348,1765986659599,-151.0,0.00036,31]
[398909349,1765986659611,-151.0,0.00036,31]
[398909350,1765986659620,-151.0,0.00036,31]
[398909351,1765986659631,-151.0,0.00036,31]
[398909352,1765986659642,-563.33,0.00036055,2]
[398909353,1765986659658,-5000.0,0.00036058,2]
[398909354,1765986659668,-505.81324,0.00036088,30]
[398909355,1765986659679,-5000.0,0.00036099,2]
[398909356,1765986659689,-3380.83,0.00036099,2]
[398909357,1765986659699,-5000.0,0.00036129,2]
[398909358,1765986659709,-5000.0,0.00036139,2]
[398909359,1765986659719,-5000.0,0.00036153,2]
[398909360,1765986659730,-5000.0,0.00036158,2]
[398909361,1765986659741,-2000.0,0.00036164,120]
[398909362,1765986659751,-5000.0,0.00036191,2]
[398909363,1765986659761,-5000.0,0.00036197,2]
[398909364,1765986659772,-25000.0,0.00036224,2]
[398909365,1765986659782,-5000.0,0.00036248,2]
[398909366,1765986659792,-5000.0,0.00036249,2]
[398909367,1765986659802,-25000.0,0.00036281,2]
[398909368,1765986659813,-5000.0,0.00036288,2]
[398909369,1765986659823,-505.81324,0.00036288,30]
[398909370,1765986659833,-5000.0,0.00036293,2]
[398909371,1765986659843,-5000.0,0.00036296,2]
[398909372,1765986659853,-1668.53,0.00036304,2]
[398909373,1765986659863,-5000.0,0.00036323,2]
[398909374,1765986659874,-25000.0,0.0003633,2]
[398909375,1765986659885,-151.0,0.0003633,31]
[398909376,1765986659895,-285.987426,0.0003633,31]
[398909377,1765986659910,-730.28,0.00036375,2]
[398909378,1765986659920,-730.28,0.00036375,2]
[398909379,1765986659931,-730.28,0.00036375,2]
[398909380,1765986659942,-730.28,0.00036375,2]
[398909381,1765986659953,-730.41531441,0.00036375,2]
[398909382,1765986659963,-25000.0,0.00036376,2]
[398909383,1765986659974,-284.0,0.00036383,30]
[398909384,1765986659984,-481.11077973,0.00036395,2]
[398909385,1765986659995,-284.4,0.000364,30]
[398909386,1765986660005,-251.40987803,0.00036413,16]
[398909387,1765986660017,-2549.16,0.00036477,2]
[398909388,1765986660028,-5000.0,0.00036478,2]
[398909389,1765986660039,-505.81324,0.00036488,30]
[398909390,1765986660050,-1494.01,0.00036491,2]
[398909391,1765986660062,-5000.0,0.00036506,2]
[398909392,1765986660073,-25000.0,0.0003651,2]
[398909393,1765986660083,-151.0,0.0003651,31]
[398909394,1765986660094,-151.0,0.0003651,31]
[398909395,1765986660104,-151.0,0.0003651,31]
[398909396,1765986660116,-269.24739,0.0003651,31]
[398909397,1765986660127,-1975.536068,0.0003651,31]
[398909398,1765986660137,-1975.536068,0.0003651,31]
[398909399,1765986660147,-269.24739,0.0003651,31]
[398909400,1765986660164,-1975.536068,0.0003651,31]
[398909401,1765986660175,-269.24739,0.0003651,31]
[398909402,1765986660186,-151.0,0.0003651,31]
[398909403,1765986660197,-308.795552,0.0003651,31]
[398909404,1765986660208,-1975.536068,0.0003651,31]
[398909405,1765986660219,-269.24739,0.0003651,31]
[398909406,1765986660230,-189.605524,0.0003651,31]
[398909407,1765986660241,-308.795552,0.0003651,31]
[398909408,1765986660252,-151.0,0.0003651,31]
[398909409,1765986660600,-308.795552,0.0003651,31]
[398909410,1765986660612,-151.0,0.0003651,31]
[398909411,1765986660622,-308.795552,0.0003651,31]
[398909412,1765986660633,-151.0,0.0003651,31]
[398909413,1765986660644,-151.0,0.0003651,31]
[398909414,1765986660661,-151.0,0.0003651,31]
[398909415,1765986660671,-151.0,0.0003651,31]
[398909416,1765986660682,-183.104191,0.0003651,31]
[398909417,1765986660692,-151.0,0.0003651,31]
[398909418,1765986660702,-525.697294,0.0003651,31]
[398909419,1765986660712,-151.0,0.0003651,31]
[398909420,1765986660722,-151.0,0.0003651,31]
[398909421,1765986660732,-525.697294,0.0003651,31]
[398909422,1765986660743,-151.0,0.0003651,31]
[398909423,1765986660753,-525.697294,0.0003651,31]
[398909424,1765986660763,-151.0,0.0003651,31]
[398909425,1765986660772,-525.697294,0.0003651,31]
[398909426,1765986660782,-151.0,0.0003651,31]
[398909427,1765986660792,-151.0,0.0003651,31]
[398909428,1765986660802,-206.514843,0.0003651,31]
[398909429,1765986660812,-151.0,0.0003651,31]
[398909430,1765986660822,-151.0,0.0003651,31]
[398909431,1765986660832,-206.514843,0.0003651,31]
[398909432,1765986660843,-151.0,0.0003651,31]
[398909433,1765986660854,-171.976576,0.0003651,31]
[398909434,1765986660864,-206.514843,0.0003651,31]
[398909435,1765986660874,-151.0,0.0003651,31]
[398909436,1765986660884,-206.514843,0.0003651,31]
[398909437,1765986660894,-151.0,0.0003651,31]
[398909438,1765986660910,-151.0,0.0003651,31]
[398909439,1765986660920,-161.806674,0.0003651,31]
[398909440,1765986660930,-163.774014,0.0003651,31]
[398909441,1765986660940,-778.117682,0.0003651,7]
[398909442,1765986660951,-163.774014,0.0003651,31]
[398909443,1765986660961,-778.117682,0.0003651,7]
[398909444,1765986660972,-163.774014,0.0003651,31]
[398909445,1765986660983,-778.117682,0.0003651,7]
[398909446,1765986660993,-163.774014,0.0003651,31]
[398909447,1765986661003,-778.117682,0.0003651,7]
[398909448,1765986661012,-234.96503369,0.00036521,7]
[398909449,1765986661022,-150.0,0.00036521,7]
[398909450,1765986661032,-150.0,0.00036521,7]
[398909451,1765986661042,-150.0,0.00036521,7]
[398909452,1765986661051,-150.0,0.00036521,7]
[398909453,1765986661061,-150.0,0.00036521,7]
[398909454,1765986661071,-150.0,0.00036521,7]
[398909455,1765986661081,-5000.0,0.00036529,2]
[398909456,1765986661092,-13629.35,0.00036541,2]
[398909457,1765986661102,-151.0,0.00036541,31]
[398909458,1765986661112,-151.0,0.00036541,31]
[398909459,1765986661123,-151.0,0.00036541,31]
[398909460,1765986661134,-151.0,0.00036541,31]
[398909461,1765986661144,-151.0,0.00036541,31]
[398909462,1765986661158,-151.0,0.00036541,31]
[398909463,1765986661168,-214.958775,0.00036541,31]
[398909464,1765986661178,-5000.0,0.00036561,2]
[398909465,1765986661188,-2549.16,0.00036595,2]
[398909466,1765986661199,-5000.0,0.00036611,2]
[398909467,1765986661208,-4461.25,0.0003662,2]
[398909468,1765986661218,-151.0,0.0003662,31]
[398909469,1765986661228,-151.0,0.0003662,31]
[398909470,1765986661238,-249.916202,0.0003662,31]
[398909471,1765986661248,-151.0,0.0003662,2]
[398909472,1765986661258,-151.0,0.0003662,2]
[398909473,1765986661268,-151.0,0.0003662,31]
[398909474,1765986661278,-151.0,0.0003662,31]
[398909475,1765986661287,-177.249851,0.0003662,31]
[398909476,1765986661297,-5000.0,0.0003665,2]
[398909477,1765986661307,-959.96,0.0003668,2]
[398909478,1765986661317,-505.81324,0.00036688,30]
[398909479,1765986661327,-5000.0,0.00036709,2]
[398909480,1765986661337,-151.0,0.00036709,31]
[398909481,1765986661347,-428.353702,0.00036709,31]
[398909482,1765986661357,-428.353702,0.00036709,31]
[398909483,1765986661367,-428.353702,0.00036709,31]
[398909484,1765986661376,-428.353702,0.00036709,31]
[398909485,1765986661386,-363.975936,0.00036709,31]
[398909486,1765986661396,-363.975936,0.00036709,31]
[398909487,1765986661410,-151.0,0.00036709,31]
[398909488,1765986661419,-363.975936,0.00036709,31]
[398909489,1765986661429,-175.179963,0.00036709,31]
[398909490,1765986661439,-151.0,0.00036709,31]
[398909491,1765986661450,-363.975936,0.00036709,31]
[398909492,1765986661460,-175.179963,0.00036709,31]
[398909493,1765986661469,-151.0,0.00036709,31]
[398909494,1765986661479,-175.179963,0.00036709,31]
[398909495,1765986661488,-151.0,0.00036709,31]
[398909496,1765986661498,-175.179963,0.00036709,31]
[398909497,1765986661508,-151.0,0.00036709,31]
[398909498,1765986661521,-2000.0,0.00036712,120]
[398909499,1765986661531,-660.29,0.00036724,2]
[398909500,1765986661541,-500.0,0.0003675,14]
[398909501,1765986661550,-5000.0,0.00036774,2]
[398909502,1765986661560,-5000.0,0.00036778,2]
[398909503,1765986661570,-5000.0,0.00036788,2]
[398909504,1765986661579,-1598.07516516,0.000368,2]
[398909505,1765986661588,-1939.66930488,0.000368,2]
[398909506,1765986661598,-5000.0,0.00036812,2]
[398909507,1765986661607,-5000.0,0.00036825,2]
[398909508,1765986661617,-5000.0,0.00036847,2]
[398909509,1765986661626,-5000.0,0.00036859,2]
[398909510,1765986661637,-654.03745797,0.0003686,2]
[398909511,1765986661646,-25000.0,0.00036873,2]
[398909512,1765986661663,-624.74,0.00036882,2]
[398909513,1765986661673,-505.81324,0.00036888,30]
[398909514,1765986661682,-1686.0441,0.00036888,7]
[398909515,1765986661691,-14017.81230713,0.0003691,2]
[398909516,1765986661702,-2500.0,0.0003692,2]
[398909517,1765986661712,-5000.0,0.0003692,2]
[398909518,1765986661722,-5000.0,0.00036931,2]
[398909519,1765986661731,-25000.0,0.00036946,2]
[398909520,1765986661741,-4708.48,0.00036955,2]
[398909521,1765986661751,-5000.0,0.00036997,2]
[398909522,1765986661760,-164.3695635,0.00037,2]
[398909523,1765986661770,-72740.91003644,0.00037,7]
[398909524,1765986661780,-3000.0,0.00037,30]
[398909525,1765986661790,-3000.0,0.00037,30]
[398909526,1765986661800,-1000.0,0.00037,14]
[398909527,1765986661810,-1009.56,0.00037,14]
[398909528,1765986661819,-2567.82,0.00037,14]
[398909529,1765986661829,-50460.61,0.00037,14]
[398909530,1765986661839,-750.0,0.00037,2]
[398909531,1765986661849,-1000.0,0.00037024,14]
[398909532,1765986661858,-1300.0,0.00037024,14]
[398909533,1765986661868,-505.81324,0.00037088,30]
[398909534,1765986661878,-1327.57,0.00037096,2]
[398909535,1765986661887,-480.88,0.00037096,2]
[398909536,1765986661897,-176.71460205,0.000372,120]
[398909537,1765986661916,-2000.0,0.0003726,120]
[398909538,1765986661926,-505.81324,0.00037288,30]
[398909539,1765986661935,-178.3,0.0003737,2]
[398909540,1765986661946,-217.8,0.0003737,2]
[398909541,1765986661955,-170.46,0.0003737,2]
[398909542,1765986661965,-464.23,0.0003737,2]
[398909543,1765986661975,-1217.86,0.0003737,2]
[398909544,1765986661984,-505.81324,0.00037488,30]
[398909545,1765986661993,-4297.58312648,0.0003759,2]
[398909546,1765986662002,-284.4,0.000376,30]
[398909547,1765986662012,-505.81324,0.00037688,30]
[398909548,1765986662021,-498.91187858,0.00037764,2]
[398909549,1765986662031,-2000.0,0.00037808,120]
[398909550,1765986662041,-200.49534387,0.0003788,2]
[398909551,1765986662050,-505.81324,0.00037888,30]
[398909552,1765986662060,-167.0,0.00038,30]
[398909553,1765986662070,-357.86803958,0.00038,4]
[398909554,1765986662080,-256.16076618,0.00038,120]
[398909555,1765986662089,-200.0,0.00038,120]
[398909556,1765986662099,-3000.0,0.00038,30]
[398909557,1765986662108,-3000.0,0.00038,30]
[398909558,1765986662117,-22607.13282703,0.00038,3]
[398909559,1765986662127,-1726.05219993,0.00038,120]
[398909560,1765986662137,-870.0,0.00038,4]
[398909561,1765986662147,-25000.0,0.00038042,10]
[398909562,1765986662163,-25000.0,0.00038051,10]
[398909563,1765986662173,-25000.0,0.0003806,10]
[398909564,1765986662183,-25000.0,0.00038069,10]
[398909565,1765986662192,-25000.0,0.00038078,10]
[398909566,1765986662201,-151.0,0.00038078,31]
[398909567,1765986662210,-151.0,0.00038078,10]
[398909568,1765986662219,-151.0,0.00038078,31]
[398909569,1765986662229,-151.0,0.00038078,31]
[398909570,1765986662238,-291.638488,0.00038078,31]
[398909571,1765986662247,-291.638488,0.00038078,31]
[398909572,1765986662257,-291.638488,0.00038078,31]
[398909573,1765986662266,-291.638488,0.00038078,31]
[398909574,1765986662277,-151.0,0.00038078,31]
[398909575,1765986662287,-151.0,0.00038078,31]
[398909576,1765986662297,-151.0,0.00038078,31]
[398909577,1765986662309,-151.0,0.00038078,31]
[398909578,1765986662319,-151.0,0.00038078,31]
[398909579,1765986662329,-151.0,0.00038078,31]
[398909580,1765986662338,-151.0,0.00038078,31]
[398909581,1765986662347,-269.090686,0.00038078,31]
[398909582,1765986662357,-269.090686,0.00038078,31]
[398909583,1765986662366,-269.090686,0.00038078,31]
[398909584,1765986662375,-269.090686,0.00038078,31]
[398909585,1765986662385,-221.416471,0.00038078,31]
[398909586,1765986662394,-221.416471,0.00038078,31]
[398909587,1765986662408,-221.416471,0.00038078,31]
[398909588,1765986662418,-221.416471,0.00038078,31]
[398909589,1765986662427,-151.0,0.00038083,14]
[398909590,1765986662436,-25000.0,0.00038086,10]
[398909591,1765986662446,-505.81324,0.00038088,30]
[398909592,1765986662456,-25000.0,0.00038095,10]
[398909593,1765986662465,-3667.91740475,0.000381,33]
[398909594,1765986662474,-10000.0,0.000381,7]
[398909595,1765986662483,-25000.0,0.00038104,10]
[398909596,1765986662494,-151.0,0.00038104,31]
[398909597,1765986662504,-151.0,0.00038104,31]
[398909598,1765986662514,-255.43324,0.00038104,31]
[398909599,1765986662523,-151.0,0.00038104,31]
[398909600,1765986662535,-151.0,0.00038104,31]
[398909601,1765986662544,-151.0,0.00038104,31]
[398909602,1765986662554,-431.380626,0.00038104,31]
[398909603,1765986662565,-151.0,0.00038104,31]
[398909604,1765986662575,-151.0,0.00038104,31]
[398909605,1765986662584,-431.380626,0.00038104,31]
[398909606,1765986662594,-151.0,0.00038104,31]
[398909607,1765986662603,-431.380626,0.00038104,31]
[398909608,1765986662612,-431.380626,0.00038104,31]
[398909609,1765986662622,-151.0,0.00038104,31]
[398909610,1765986662631,-195.955722,0.00038104,31]
[398909611,1765986662640,-151.0,0.00038104,31]
[398909612,1765986662650,-195.955722,0.00038104,31]
[398909613,1765986662665,-264.30336,0.00038104,31]
[398909614,1765986662676,-172.069956,0.00038104,15]
[398909615,1765986662689,-195.955722,0.00038104,31]
[398909616,1765986662711,-151.0,0.00038104,31]
[398909617,1765986662726,-151.0,0.00038104,31]
[398909618,1765986662744,-172.069956,0.00038104,15]
[398909619,1765986662764,-195.955722,0.00038104,31]
[398909620,1765986662779,-151.0,0.00038104,31]
[398909621,1765986662797,-151.0,0.00038104,31]
[398909622,1765986662814,-172.069956,0.00038104,15]
[398909623,1765986662833,-646.700271,0.00038104,31]
[398909624,1765986662852,-151.0,0.00038104,31]
[398909625,1765986662871,-211.092217,0.00038104,31]
[398909626,1765986662887,-646.700271,0.00038104,31]
[398909627,1765986662909,-172.069956,0.00038104,15]
[398909628,1765986662924,-356.905953,0.00038104,31]
[398909629,1765986662940,-151.0,0.00038104,31]
[398909630,1765986662957,-646.700271,0.00038104,31]
[398909631,1765986662970,-356.905953,0.00038104,31]
[398909632,1765986662987,-232.657791,0.00038104,31]
[398909633,1765986663000,-173.893164,0.00038104,31]
[398909634,1765986663015,-151.0,0.00038104,31]
[398909635,1765986663031,-646.700271,0.00038104,31]
[398909636,1765986663047,-356.905953,0.00038104,31]
[398909637,1765986663065,-151.0,0.00038104,31]
[398909638,1765986663092,-262.451008,0.00038104,31]
[398909639,1765986663117,-356.905953,0.00038104,31]
[398909640,1765986663140,-151.0,0.00038104,31]
[398909641,1765986663169,-206.116612,0.00038104,31]
[398909642,1765986663184,-151.0,0.00038104,31]
[398909643,1765986663200,-151.0,0.00038104,31]
[398909644,1765986663214,-151.0,0.00038104,31]
[398909645,1765986663229,-243.185339,0.00038104,31]
[398909646,1765986663251,-151.0,0.00038104,31]
[398909647,1765986663267,-151.0,0.00038104,31]
[398909648,1765986663282,-151.0,0.00038104,31]
[398909649,1765986663296,-151.0,0.00038104,31]
[398909650,1765986663311,-25000.0,0.00038113,10]
[398909651,1765986663326,-25000.0,0.00038122,10]
[398909652,1765986663341,-25000.0,0.0003813,10]
[398909653,1765986663355,-25000.0,0.00038139,10]
[398909654,1765986663370,-25000.0,0.00038148,10]
[398909655,1765986663385,-25000.0,0.00038157,10]
[398909656,1765986663400,-25000.0,0.00038166,10]
[398909657,1765986663419,-25000.0,0.00038174,10]
[398909658,1765986663435,-151.0,0.00038183,31]
[398909659,1765986663451,-256.334537,0.00038183,31]
[398909660,1765986663466,-151.0,0.00038183,31]
[398909661,1765986663481,-151.0,0.00038183,31]
[398909662,1765986663497,-151.0,0.00038183,31]
[398909663,1765986663513,-151.0,0.00038183,31]
[398909664,1765986663528,-151.0,0.00038183,31]